[Event "*** SCC Grand Prix: Titled Tuesday Blitz"]
[Site "Chess.com"]
[Date "2020.06.09"]
[Round "9"]
[White "olksuna"]
[Black "dey2580"]
[Result "0-1"]
[WhiteElo "2620"]
[BlackElo "2482"]
[TimeControl "180+1"]
[EndTime "10:47:03 PDT"]
[Termination "dey2580 won by resignation"]

1. c4 {[%clk 0:03:00.9]} 1... Nf6 {[%clk 0:02:58.8]} 2. Nc3 {[%clk 0:03:01.1]}
2... e6 {[%clk 0:02:59.1]} 3. Nf3 {[%clk 0:03:00.6]} 3... d5 {[%clk 0:02:55.5]}
4. e3 {[%clk 0:03:00.7]} 4... Be7 {[%clk 0:02:51.8]} 5. b3 {[%clk 0:03:01.3]}
5... O-O {[%clk 0:02:52.2]} 6. Bb2 {[%clk 0:03:01.9]} 6... b6 {[%clk 0:02:52.7]}
7. Rc1 {[%clk 0:02:58]} 7... Bb7 {[%clk 0:02:52.9]} 8. cxd5 {[%clk 0:02:54.4]}
8... Nxd5 {[%clk 0:02:51.8]} 9. d4 {[%clk 0:02:55]} 9... Nxc3 {[%clk 0:02:48.4]}
10. Bxc3 {[%clk 0:02:55.9]} 10... c5 {[%clk 0:02:48.5]} 11. Be2 {[%clk
0:02:53.5]} 11... cxd4 {[%clk 0:02:46.2]} 12. Nxd4 {[%clk 0:02:53.5]} 12... Bf6
{[%clk 0:02:45]} 13. Bf3 {[%clk 0:02:49.2]} 13... Qe7 {[%clk 0:02:05.3]} 14. O-O
{[%clk 0:02:43.5]} 14... Rd8 {[%clk 0:02:03.8]} 15. Bb4 {[%clk 0:02:32.8]} 15...
Qd7 {[%clk 0:02:01.3]} 16. Qe2 {[%clk 0:02:09.4]} 16... Bxf3 {[%clk 0:01:13.6]}
17. Qxf3 {[%clk 0:02:04.4]} 17... Na6 {[%clk 0:01:13.7]} 18. Bc3 {[%clk
0:01:54]} 18... Rac8 {[%clk 0:01:10.5]} 19. Bb2 {[%clk 0:01:46]} 19... Nb4
{[%clk 0:01:05.8]} 20. a3 {[%clk 0:01:36.7]} 20... Nd3 {[%clk 0:01:04.2]} 21.
Rxc8 {[%clk 0:01:36.5]} 21... Rxc8 {[%clk 0:00:55.6]} 22. Ba1 {[%clk 0:01:36.5]}
22... e5 {[%clk 0:00:37.2]} 23. Nf5 {[%clk 0:01:31.2]} 23... Qc6 {[%clk
0:00:33.1]} 24. e4 {[%clk 0:01:29.2]} 24... Qc2 {[%clk 0:00:29.8]} 25. Qg4
{[%clk 0:01:25]} 25... Kf8 {[%clk 0:00:26.3]} 26. h4 {[%clk 0:01:17.4]} 26...
Nf4 {[%clk 0:00:24.2]} 27. b4 {[%clk 0:01:12]} 27... Qxe4 {[%clk 0:00:22]} 28.
Nd6 {[%clk 0:01:07.8]} 28... Ne2+ {[%clk 0:00:20.2]} 29. Qxe2 {[%clk 0:01:06.9]}
29... Qxe2 {[%clk 0:00:21.1]} 30. Nxc8 {[%clk 0:01:07.4]} 30... Be7 {[%clk
0:00:19.8]} 31. Nxa7 {[%clk 0:01:05.6]} 31... Qe4 {[%clk 0:00:19.4]} 32. h5
{[%clk 0:01:03.6]} 32... Qg4 {[%clk 0:00:18.8]} 33. h6 {[%clk 0:01:00.8]} 33...
f6 {[%clk 0:00:17.8]} 34. hxg7+ {[%clk 0:00:57.3]} 34... Kxg7 {[%clk 0:00:18.4]}
35. Nc6 {[%clk 0:00:57.8]} 35... Bd6 {[%clk 0:00:18.4]} 36. Rc1 {[%clk
0:00:54.5]} 36... Qe4 {[%clk 0:00:17.1]} 37. Nd8 {[%clk 0:00:50.5]} 37... Kg6
{[%clk 0:00:16.6]} 38. Rd1 {[%clk 0:00:42.2]} 38... Be7 {[%clk 0:00:16.4]} 39.
Ne6 {[%clk 0:00:39.8]} 39... Qg4 {[%clk 0:00:16.5]} 40. Rd7 {[%clk 0:00:27.6]}
40... Qxe6 {[%clk 0:00:16]} 41. Rb7 {[%clk 0:00:27.9]} 41... h5 {[%clk
0:00:13.7]} 42. Bc3 {[%clk 0:00:25.4]} 42... Bd8 {[%clk 0:00:13.9]} 43. Be1
{[%clk 0:00:24.5]} 43... Qc6 {[%clk 0:00:13.2]} 44. Rb8 {[%clk 0:00:24.9]} 44...
Bc7 {[%clk 0:00:13.1]} 45. Rg8+ {[%clk 0:00:24.7]} 45... Kf5 {[%clk 0:00:13.5]}
46. Rc8 {[%clk 0:00:25.6]} 46... Qd7 {[%clk 0:00:13.3]} 47. Rh8 {[%clk
0:00:25.2]} 47... Qd1 {[%clk 0:00:13.2]} 48. Kf1 {[%clk 0:00:24.9]} 48... e4
{[%clk 0:00:12.6]} 49. Rc8 {[%clk 0:00:18.7]} 49... Be5 {[%clk 0:00:11.5]} 50.
Rc6 {[%clk 0:00:18.5]} 50... Bd4 {[%clk 0:00:11.3]} 51. Rd6 {[%clk 0:00:17.3]}
51... Qd3+ {[%clk 0:00:10]} 52. Kg1 {[%clk 0:00:17.1]} 52... Qb1 {[%clk
0:00:10.3]} 53. Rd5+ {[%clk 0:00:09]} 53... Ke6 {[%clk 0:00:09.7]} 54. Rxd4
{[%clk 0:00:09.3]} 54... Qxe1+ {[%clk 0:00:10.3]} 55. Kh2 {[%clk 0:00:10]} 55...
Ke5 {[%clk 0:00:10.4]} 56. Rxe4+ {[%clk 0:00:10.7]} 56... Kxe4 {[%clk
0:00:10.3]} 0-1

[Event "*** SCC Grand Prix: Titled Tuesday Blitz"]
[Site "Chess.com"]
[Date "2020.06.09"]
[Round "9"]
[White "gui_borba"]
[Black "TERMINATOR_PC"]
[Result "1/2-1/2"]
[WhiteElo "2363"]
[BlackElo "2475"]
[TimeControl "180+1"]
[EndTime "10:47:05 PDT"]
[Termination "Game drawn - insufficient material"]

1. d4 {[%clk 0:03:00.9]} 1... Nf6 {[%clk 0:03:00.9]} 2. Bf4 {[%clk 0:03:01.1]}
2... d5 {[%clk 0:03:00.5]} 3. e3 {[%clk 0:03:01]} 3... c5 {[%clk 0:02:59.5]} 4.
c3 {[%clk 0:03:00.2]} 4... Nc6 {[%clk 0:02:56.7]} 5. Nd2 {[%clk 0:03:00.6]} 5...
cxd4 {[%clk 0:02:56.6]} 6. exd4 {[%clk 0:03:01.5]} 6... Bf5 {[%clk 0:02:56.8]}
7. Ngf3 {[%clk 0:03:01.6]} 7... e6 {[%clk 0:02:57.4]} 8. Ne5 {[%clk 0:02:59.5]}
8... Nxe5 {[%clk 0:02:56.1]} 9. Bxe5 {[%clk 0:02:59.6]} 9... a6 {[%clk
0:02:44.7]} 10. Nf3 {[%clk 0:02:37.8]} 10... Be7 {[%clk 0:02:39.8]} 11. a4
{[%clk 0:02:37]} 11... h6 {[%clk 0:02:28.3]} 12. Bd3 {[%clk 0:02:37.3]} 12...
Bxd3 {[%clk 0:02:27.8]} 13. Qxd3 {[%clk 0:02:38.2]} 13... O-O {[%clk 0:02:25]}
14. O-O {[%clk 0:02:37.5]} 14... Ne4 {[%clk 0:02:19.9]} 15. a5 {[%clk 0:02:35]}
15... Rc8 {[%clk 0:02:16.5]} 16. Nd2 {[%clk 0:02:32.4]} 16... Nxd2 {[%clk
0:02:10.7]} 17. Qxd2 {[%clk 0:02:33.3]} 17... Bd6 {[%clk 0:02:07.4]} 18. Rfe1
{[%clk 0:02:28.7]} 18... Bxe5 {[%clk 0:02:04.6]} 19. Rxe5 {[%clk 0:02:29.6]}
19... b6 {[%clk 0:01:35.9]} 20. axb6 {[%clk 0:01:51]} 20... Qxb6 {[%clk
0:01:36.8]} 21. Re2 {[%clk 0:01:49.5]} 21... a5 {[%clk 0:01:34.4]} 22. Qd3
{[%clk 0:01:46.8]} 22... Rb8 {[%clk 0:01:32]} 23. f4 {[%clk 0:01:45.5]} 23...
Qb5 {[%clk 0:01:31.6]} 24. Qxb5 {[%clk 0:01:41.7]} 24... Rxb5 {[%clk 0:01:32.5]}
25. Kf2 {[%clk 0:01:42.2]} 25... h5 {[%clk 0:01:32.5]} 26. Ke3 {[%clk 0:01:42]}
26... Kh7 {[%clk 0:01:32.5]} 27. Kd3 {[%clk 0:01:41.9]} 27... Rfb8 {[%clk
0:01:31.1]} 28. Ra2 {[%clk 0:01:40]} 28... Kg6 {[%clk 0:01:31.2]} 29. g3 {[%clk
0:01:30.5]} 29... R8b6 {[%clk 0:01:29.5]} 30. Ke3 {[%clk 0:01:27.9]} 30... a4
{[%clk 0:01:20.8]} 31. Kf3 {[%clk 0:01:21.3]} 31... Rb3 {[%clk 0:01:17.8]} 32.
Rc2 {[%clk 0:01:16.3]} 32... Ra6 {[%clk 0:01:07.2]} 33. h3 {[%clk 0:01:07.9]}
33... a3 {[%clk 0:01:04.7]} 34. bxa3 {[%clk 0:01:08.8]} 34... Raxa3 {[%clk
0:01:04.7]} 35. Rxa3 {[%clk 0:01:09.7]} 35... Rxa3 {[%clk 0:01:05.6]} 36. g4
{[%clk 0:01:10.6]} 36... Ra1 {[%clk 0:00:59.8]} 37. Kg3 {[%clk 0:01:04.6]} 37...
Rf1 {[%clk 0:00:56.5]} 38. Rf2 {[%clk 0:01:01.3]} 38... Rc1 {[%clk 0:00:55.2]}
39. Rf3 {[%clk 0:01:01.7]} 39... Kf6 {[%clk 0:00:50.7]} 40. Re3 {[%clk
0:00:59.3]} 40... Rc2 {[%clk 0:00:50.7]} 41. Kh4 {[%clk 0:00:52.5]} 41... hxg4
{[%clk 0:00:50.4]} 42. hxg4 {[%clk 0:00:53.4]} 42... Rf2 {[%clk 0:00:49.4]} 43.
Kg3 {[%clk 0:00:53.2]} 43... Rc2 {[%clk 0:00:49]} 44. Kf3 {[%clk 0:00:52.4]}
44... Ke7 {[%clk 0:00:47.4]} 45. f5 {[%clk 0:00:52.2]} 45... Kf6 {[%clk
0:00:45.7]} 46. fxe6 {[%clk 0:00:52.4]} 46... fxe6 {[%clk 0:00:46.4]} 47. Kf4
{[%clk 0:00:51.4]} 47... Rf2+ {[%clk 0:00:46.2]} 48. Kg3 {[%clk 0:00:51.5]}
48... Rc2 {[%clk 0:00:45.9]} 49. Kf4 {[%clk 0:00:51.6]} 49... g5+ {[%clk
0:00:42.9]} 50. Kg3 {[%clk 0:00:51.6]} 50... Rc1 {[%clk 0:00:43.1]} 51. Rf3+
{[%clk 0:00:51.5]} 51... Ke7 {[%clk 0:00:42.9]} 52. Re3 {[%clk 0:00:52.4]} 52...
Kd6 {[%clk 0:00:42.1]} 53. Kf3 {[%clk 0:00:52.8]} 53... Rf1+ {[%clk 0:00:40.6]}
54. Ke2 {[%clk 0:00:52.7]} 54... Rf4 {[%clk 0:00:40.8]} 55. Rg3 {[%clk 0:00:51]}
55... e5 {[%clk 0:00:40.9]} 56. dxe5+ {[%clk 0:00:45.3]} 56... Kxe5 {[%clk
0:00:41.8]} 57. Kd3 {[%clk 0:00:45.9]} 57... Rc4 {[%clk 0:00:37.8]} 58. Re3+
{[%clk 0:00:38.8]} 58... Kf4 {[%clk 0:00:38.2]} 59. Re8 {[%clk 0:00:39.4]} 59...
Kxg4 {[%clk 0:00:36.7]} 60. Rd8 {[%clk 0:00:39.5]} 60... Rc5 {[%clk 0:00:37.3]}
61. Kd4 {[%clk 0:00:39.9]} 61... Rc4+ {[%clk 0:00:35.9]} 62. Kd3 {[%clk
0:00:40.1]} 62... Rc5 {[%clk 0:00:36.4]} 63. Kd4 {[%clk 0:00:40.6]} 63... Ra5
{[%clk 0:00:35.6]} 64. Rxd5 {[%clk 0:00:39.7]} 64... Rxd5+ {[%clk 0:00:25]} 65.
Kxd5 {[%clk 0:00:40.6]} 65... Kf4 {[%clk 0:00:25.9]} 66. c4 {[%clk 0:00:40.8]}
66... g4 {[%clk 0:00:26.5]} 67. c5 {[%clk 0:00:41.3]} 67... g3 {[%clk
0:00:27.2]} 68. c6 {[%clk 0:00:41.9]} 68... g2 {[%clk 0:00:27.8]} 69. c7 {[%clk
0:00:42.5]} 69... g1=Q {[%clk 0:00:28.4]} 70. c8=Q {[%clk 0:00:43.1]} 70... Qd1+
{[%clk 0:00:28.7]} 71. Kc6 {[%clk 0:00:43.2]} 71... Qc2+ {[%clk 0:00:24.2]} 72.
Kd7 {[%clk 0:00:44.1]} 72... Qxc8+ {[%clk 0:00:24.9]} 73. Kxc8 {[%clk
0:00:44.5]} 1/2-1/2

[Event "*** SCC Grand Prix: Titled Tuesday Blitz"]
[Site "Chess.com"]
[Date "2020.06.09"]
[Round "9"]
[White "GM_Buhmann"]
[Black "Lenyas66"]
[Result "1-0"]
[WhiteElo "2737"]
[BlackElo "2573"]
[TimeControl "180+1"]
[EndTime "10:47:09 PDT"]
[Termination "GM_Buhmann won on time"]

1. e4 {[%clk 0:03:00.9]} 1... e6 {[%clk 0:02:59.9]} 2. d4 {[%clk 0:02:59.2]}
2... d5 {[%clk 0:03:00]} 3. Nd2 {[%clk 0:02:59.6]} 3... Nf6 {[%clk 0:03:00.1]}
4. e5 {[%clk 0:02:59]} 4... Nfd7 {[%clk 0:03:00.2]} 5. Ngf3 {[%clk 0:02:58.3]}
5... c5 {[%clk 0:02:59.8]} 6. c3 {[%clk 0:02:58.9]} 6... Nc6 {[%clk 0:02:59.9]}
7. Bd3 {[%clk 0:02:58.9]} 7... Qb6 {[%clk 0:02:58.8]} 8. O-O {[%clk 0:02:57.2]}
8... Be7 {[%clk 0:02:57.7]} 9. Re1 {[%clk 0:02:47.1]} 9... O-O {[%clk
0:02:56.7]} 10. Nf1 {[%clk 0:02:44.9]} 10... f5 {[%clk 0:02:52.1]} 11. exf6
{[%clk 0:02:44.7]} 11... Nxf6 {[%clk 0:02:52.2]} 12. Ng3 {[%clk 0:02:43.6]}
12... cxd4 {[%clk 0:02:50.6]} 13. cxd4 {[%clk 0:02:43.8]} 13... Bb4 {[%clk
0:02:50.8]} 14. Re2 {[%clk 0:02:28.7]} 14... Bd6 {[%clk 0:02:34.7]} 15. Be3
{[%clk 0:02:25.7]} 15... Bd7 {[%clk 0:02:34.2]} 16. Ne5 {[%clk 0:02:20.3]} 16...
Be8 {[%clk 0:02:32.6]} 17. f4 {[%clk 0:02:17.5]} 17... Kh8 {[%clk 0:02:10]} 18.
Kh1 {[%clk 0:02:17.2]} 18... Rc8 {[%clk 0:02:08.1]} 19. Bg1 {[%clk 0:02:13.3]}
19... Nb4 {[%clk 0:02:05.9]} 20. Bb1 {[%clk 0:02:07.9]} 20... Bb5 {[%clk
0:02:02.1]} 21. Re1 {[%clk 0:02:05.7]} 21... Qc7 {[%clk 0:01:53.4]} 22. f5
{[%clk 0:01:45.7]} 22... Bxe5 {[%clk 0:01:22.4]} 23. dxe5 {[%clk 0:01:42.7]}
23... Ne4 {[%clk 0:01:22.1]} 24. Nxe4 {[%clk 0:01:37.1]} 24... dxe4 {[%clk
0:01:20.5]} 25. Bxe4 {[%clk 0:01:37]} 25... exf5 {[%clk 0:01:16.2]} 26. Bf3
{[%clk 0:01:33.2]} 26... Nd3 {[%clk 0:01:12.1]} 27. Qb3 {[%clk 0:01:13.2]} 27...
Nxe1 {[%clk 0:01:10]} 28. Rxe1 {[%clk 0:01:13.3]} 28... Bc6 {[%clk 0:01:08.4]}
29. Bxa7 {[%clk 0:01:06.2]} 29... Bxf3 {[%clk 0:00:58.6]} 30. gxf3 {[%clk
0:01:06.4]} 30... f4 {[%clk 0:00:52.4]} 31. Bd4 {[%clk 0:01:02.4]} 31... Qd7
{[%clk 0:00:49]} 32. Bc3 {[%clk 0:00:47.4]} 32... Qd3 {[%clk 0:00:39.1]} 33. Kg2
{[%clk 0:00:47.5]} 33... Rf5 {[%clk 0:00:27.8]} 34. h4 {[%clk 0:00:47.6]} 34...
b5 {[%clk 0:00:17.9]} 35. Qe6 {[%clk 0:00:43.2]} 35... Rcf8 {[%clk 0:00:17.1]}
36. Qd6 {[%clk 0:00:38.8]} 36... Qc4 {[%clk 0:00:14.4]} 37. e6 {[%clk
0:00:34.5]} 37... Rg8 {[%clk 0:00:11.5]} 38. e7 {[%clk 0:00:33.1]} 38... Qf7
{[%clk 0:00:11]} 39. Re4 {[%clk 0:00:30.5]} 39... Re8 {[%clk 0:00:10.6]} 40. Qd7
{[%clk 0:00:26.3]} 40... h6 {[%clk 0:00:10.5]} 41. Qe6 {[%clk 0:00:25]} 41...
Kg8 {[%clk 0:00:10]} 42. Qxf7+ {[%clk 0:00:24.6]} 42... Kxf7 {[%clk 0:00:09.9]}
43. Bb4 {[%clk 0:00:25.3]} 43... g5 {[%clk 0:00:09.3]} 44. Kh3 {[%clk
0:00:25.2]} 44... gxh4 {[%clk 0:00:08.2]} 45. Kg4 {[%clk 0:00:25.6]} 45... Rf6
{[%clk 0:00:07.3]} 46. Kxh4 {[%clk 0:00:24.6]} 46... Rc8 {[%clk 0:00:05.3]} 47.
Bc3 {[%clk 0:00:24.2]} 47... Re6 {[%clk 0:00:04.5]} 48. Rxf4+ {[%clk 0:00:23.1]}
48... Kxe7 {[%clk 0:00:04.8]} 49. Bb4+ {[%clk 0:00:23.5]} 49... Kd7 {[%clk
0:00:04.6]} 50. Kh5 {[%clk 0:00:22.7]} 50... Kc6 {[%clk 0:00:04.7]} 51. Rd4
{[%clk 0:00:22.3]} 51... Rce8 {[%clk 0:00:03]} 52. f4 {[%clk 0:00:22.6]} 52...
Rf6 {[%clk 0:00:02.8]} 53. Kg4 {[%clk 0:00:22.3]} 53... Re2 {[%clk 0:00:02.2]}
54. Bc3 {[%clk 0:00:22.3]} 54... Rg2+ {[%clk 0:00:01.9]} 55. Kf3 {[%clk
0:00:22]} 55... Rg1 {[%clk 0:00:01.1]} 56. a4 {[%clk 0:00:21.8]} 1-0

[Event "*** SCC Grand Prix: Titled Tuesday Blitz"]
[Site "Chess.com"]
[Date "2020.06.09"]
[Round "9"]
[White "MusicCityMaster"]
[Black "Bayernbk"]
[Result "1/2-1/2"]
[WhiteElo "2346"]
[BlackElo "2450"]
[TimeControl "180+1"]
[EndTime "10:47:09 PDT"]
[Termination "Game drawn by agreement"]

1. e4 {[%clk 0:03:00.9]} 1... d5 {[%clk 0:02:57.9]} 2. exd5 {[%clk 0:03:00.4]}
2... Nf6 {[%clk 0:02:58.1]} 3. d4 {[%clk 0:02:58]} 3... Nxd5 {[%clk 0:02:54.1]}
4. c4 {[%clk 0:02:56.3]} 4... Nb6 {[%clk 0:02:54.3]} 5. Nc3 {[%clk 0:02:55.4]}
5... Nc6 {[%clk 0:02:50.9]} 6. Be3 {[%clk 0:02:55.2]} 6... Bf5 {[%clk
0:02:43.9]} 7. Rc1 {[%clk 0:02:51.9]} 7... e6 {[%clk 0:02:38.4]} 8. Be2 {[%clk
0:02:48.8]} 8... Be7 {[%clk 0:02:31.1]} 9. Nf3 {[%clk 0:02:43.7]} 9... O-O
{[%clk 0:02:31.2]} 10. h3 {[%clk 0:02:40.4]} 10... Na5 {[%clk 0:02:18.5]} 11.
Nd2 {[%clk 0:02:25.5]} 11... Bf6 {[%clk 0:02:04.1]} 12. c5 {[%clk 0:01:45.1]}
12... Nd5 {[%clk 0:01:45.2]} 13. O-O {[%clk 0:01:33.4]} 13... Nxc3 {[%clk
0:01:11.7]} 14. bxc3 {[%clk 0:01:28.4]} 14... e5 {[%clk 0:01:09.8]} 15. Nb3
{[%clk 0:01:08.6]} 15... Nxb3 {[%clk 0:00:59.9]} 16. Qxb3 {[%clk 0:01:01.7]}
16... b6 {[%clk 0:00:55.6]} 17. Rfd1 {[%clk 0:00:55.9]} 17... exd4 {[%clk
0:00:52.3]} 18. cxd4 {[%clk 0:00:51.3]} 18... c6 {[%clk 0:00:34.7]} 19. Bf3
{[%clk 0:00:50.7]} 19... Be6 {[%clk 0:00:32.6]} 20. d5 {[%clk 0:00:46.7]} 20...
cxd5 {[%clk 0:00:21.9]} 21. Bxd5 {[%clk 0:00:46.8]} 21... Bxd5 {[%clk
0:00:20.3]} 22. Rxd5 {[%clk 0:00:47.7]} 22... Qe7 {[%clk 0:00:17.7]} 23. c6
{[%clk 0:00:37.4]} 23... Rac8 {[%clk 0:00:14.9]} 24. Rd7 {[%clk 0:00:33.8]}
24... Qe4 {[%clk 0:00:14.9]} 25. Rxa7 {[%clk 0:00:21.9]} 25... Rxc6 {[%clk
0:00:13.6]} 26. Rxc6 {[%clk 0:00:21.9]} 26... Qxc6 {[%clk 0:00:14.2]} 27. Qxb6
{[%clk 0:00:22]} 27... Qc2 {[%clk 0:00:06.7]} 28. Qb7 {[%clk 0:00:15]} 28... h5
{[%clk 0:00:04.3]} 29. a4 {[%clk 0:00:12.4]} 29... Qd1+ {[%clk 0:00:04.4]} 30.
Kh2 {[%clk 0:00:11.2]} 30... Be5+ {[%clk 0:00:05]} 31. f4 {[%clk 0:00:10.5]}
31... Bd6 {[%clk 0:00:03.3]} 32. Qe4 {[%clk 0:00:07.8]} 32... h4 {[%clk
0:00:02.1]} 33. a5 {[%clk 0:00:06.2]} 33... Qe2 {[%clk 0:00:01.7]} 34. Qf3
{[%clk 0:00:06.1]} 34... Qxf3 {[%clk 0:00:01.6]} 35. gxf3 {[%clk 0:00:06]} 35...
Rc8 {[%clk 0:00:02.2]} 36. a6 {[%clk 0:00:05.2]} 36... Rc2+ {[%clk 0:00:02.3]}
37. Kg1 {[%clk 0:00:05.4]} 37... Bc5 {[%clk 0:00:01.9]} 38. Ra8+ {[%clk
0:00:05.3]} 38... Kh7 {[%clk 0:00:01.8]} 39. Bxc5 {[%clk 0:00:05.2]} 39... Rxc5
{[%clk 0:00:02.6]} 40. a7 {[%clk 0:00:05]} 40... Ra5 {[%clk 0:00:02.9]} 41. Kf2
{[%clk 0:00:05.6]} 41... Ra3 {[%clk 0:00:03.3]} 42. Ke2 {[%clk 0:00:05.6]} 42...
Kg6 {[%clk 0:00:03.7]} 43. f5+ {[%clk 0:00:04.5]} 43... Kxf5 {[%clk 0:00:03.8]}
44. Rh8 {[%clk 0:00:03.7]} 44... Rxa7 {[%clk 0:00:03.8]} 45. Rxh4 {[%clk
0:00:03.8]} 45... g6 {[%clk 0:00:04.2]} 46. Re4 {[%clk 0:00:03.4]} 46... Kf6
{[%clk 0:00:04.3]} 47. Kf2 {[%clk 0:00:03.8]} 47... Ra5 {[%clk 0:00:04.5]} 48.
Kg3 {[%clk 0:00:04.2]} 48... Rg5+ {[%clk 0:00:05.1]} 49. Kf2 {[%clk 0:00:04.1]}
49... Rf5 {[%clk 0:00:05.4]} 50. Kg3 {[%clk 0:00:04.2]} 50... Rg5+ {[%clk
0:00:06]} 51. Kf2 {[%clk 0:00:04.4]} 1/2-1/2

[Event "*** SCC Grand Prix: Titled Tuesday Blitz"]
[Site "Chess.com"]
[Date "2020.06.09"]
[Round "9"]
[White "Escanor89"]
[Black "eightbyeightchess"]
[Result "0-1"]
[WhiteElo "2496"]
[BlackElo "2397"]
[TimeControl "180+1"]
[EndTime "10:47:10 PDT"]
[Termination "eightbyeightchess won on time"]

1. c4 {[%clk 0:03:00.9]} 1... e5 {[%clk 0:02:58.6]} 2. Nc3 {[%clk 0:02:59.9]}
2... Nf6 {[%clk 0:02:57.4]} 3. Nf3 {[%clk 0:02:57.8]} 3... e4 {[%clk 0:02:55.2]}
4. Ng5 {[%clk 0:02:56.1]} 4... b5 {[%clk 0:02:55.8]} 5. d3 {[%clk 0:02:40]} 5...
bxc4 {[%clk 0:02:45.6]} 6. Ngxe4 {[%clk 0:02:34.1]} 6... Nxe4 {[%clk 0:02:36.5]}
7. dxe4 {[%clk 0:02:33.4]} 7... Bb7 {[%clk 0:02:31.1]} 8. Qd4 {[%clk 0:02:24.2]}
8... Nc6 {[%clk 0:02:21.3]} 9. Qxc4 {[%clk 0:02:22.2]} 9... Bd6 {[%clk
0:02:09.3]} 10. a3 {[%clk 0:02:16.2]} 10... O-O {[%clk 0:02:06.6]} 11. e3 {[%clk
0:02:13.9]} 11... Ne5 {[%clk 0:02:01.3]} 12. Qd4 {[%clk 0:02:01.9]} 12... f5
{[%clk 0:01:57.3]} 13. Be2 {[%clk 0:01:49.5]} 13... Qh4 {[%clk 0:01:46.8]} 14.
exf5 {[%clk 0:01:06.4]} 14... Qg5 {[%clk 0:01:34.8]} 15. Bd2 {[%clk 0:00:53.1]}
15... Qxf5 {[%clk 0:01:23.3]} 16. f4 {[%clk 0:00:33.6]} 16... Bxg2 {[%clk
0:01:15.3]} 17. Rg1 {[%clk 0:00:31]} 17... Bf3 {[%clk 0:01:09.3]} 18. O-O-O
{[%clk 0:00:16.2]} 18... Bxe2 {[%clk 0:01:07.1]} 19. Nxe2 {[%clk 0:00:16.3]}
19... Nd3+ {[%clk 0:01:04.5]} 20. Kb1 {[%clk 0:00:13.9]} 20... Nf2+ {[%clk
0:00:39.2]} 21. Ka1 {[%clk 0:00:12.1]} 21... Rf7 {[%clk 0:00:33.6]} 22. Bc3
{[%clk 0:00:11.7]} 22... Bf8 {[%clk 0:00:29.7]} 23. Rdf1 {[%clk 0:00:10.6]}
23... Ne4 {[%clk 0:00:28.6]} 24. Ng3 {[%clk 0:00:08.5]} 24... Nxg3 {[%clk
0:00:28.4]} 25. Rxg3 {[%clk 0:00:08.6]} 25... c5 {[%clk 0:00:26]} 26. Qd2 {[%clk
0:00:07.8]} 26... d5 {[%clk 0:00:23.9]} 27. Rfg1 {[%clk 0:00:07.3]} 27... Rd8
{[%clk 0:00:18]} 28. Rg5 {[%clk 0:00:07]} 28... Qe4 {[%clk 0:00:16]} 29. Be5
{[%clk 0:00:06.3]} 29... d4 {[%clk 0:00:15.1]} 30. exd4 {[%clk 0:00:06.3]} 30...
cxd4 {[%clk 0:00:15.1]} 31. Re1 {[%clk 0:00:04.5]} 31... Qc6 {[%clk 0:00:11.3]}
32. Reg1 {[%clk 0:00:04.3]} 32... d3 {[%clk 0:00:10.2]} 33. Bc3 {[%clk 0:00:03]}
33... Qe4 {[%clk 0:00:09.5]} 34. R1g3 {[%clk 0:00:03]} 34... Qe2 {[%clk
0:00:06]} 35. Re3 {[%clk 0:00:02.7]} 35... Qxd2 {[%clk 0:00:04.5]} 36. Bxd2
{[%clk 0:00:03.1]} 36... Re7 {[%clk 0:00:04.1]} 37. Rge5 {[%clk 0:00:03]} 37...
Rxe5 {[%clk 0:00:04.1]} 38. fxe5 {[%clk 0:00:03.3]} 38... Be7 {[%clk 0:00:05]}
39. b3 {[%clk 0:00:03.5]} 39... Rd5 {[%clk 0:00:04.4]} 40. e6 {[%clk 0:00:03]}
40... Bf6+ {[%clk 0:00:03.9]} 41. Kb1 {[%clk 0:00:02.9]} 41... Kf8 {[%clk
0:00:04.7]} 42. Bb4+ {[%clk 0:00:02]} 42... Ke8 {[%clk 0:00:04.9]} 43. Kc1
{[%clk 0:00:02.3]} 43... Rg5 {[%clk 0:00:03.1]} 44. Kd2 {[%clk 0:00:01.7]} 44...
Rg2+ {[%clk 0:00:03]} 45. Kxd3 {[%clk 0:00:01.8]} 45... Rxh2 {[%clk 0:00:03.5]}
46. Ke4 {[%clk 0:00:02.1]} 46... Rh4+ {[%clk 0:00:03.5]} 47. Kd5 {[%clk
0:00:02.1]} 47... Rd4+ {[%clk 0:00:03.2]} 48. Kc6 {[%clk 0:00:02.3]} 48... Rd1
{[%clk 0:00:03.6]} 49. Rc3 {[%clk 0:00:01.9]} 49... Bxc3 {[%clk 0:00:03.3]} 50.
Bxc3 {[%clk 0:00:01.8]} 50... Rc1 {[%clk 0:00:04.2]} 0-1